[Event "FIDE WY-U16 Olympiad 2022"]
[Site "Nakhchivan"]
[Date "2022.10.03"]
[Round "2.23"]
[White "Rzayev, Murad"]
[Black "Zhao, Jeffrey Renfei"]
[Result "1-0"]
[ECO "E92"]
[WhiteElo "1699"]
[BlackElo "1807"]
[Annotator "COMBH"]
[PlyCount "111"]
[EventDate "2022.10.02"]
[EventType "team-tourn"]
[EventCountry "AZE"]
[TimeControl "40/5400+30:1800+30"]

1. d4 {[%emt 0:00:01]} Nf6 {[%emt 0:00:05]} 2. c4 {[%emt 0:00:05]} g6 {[%emt 0:00:04]} 3. Nc3 {[%emt 0:00:04]} Bg7 {[%emt 0:00:03]} 4. e4 {[%emt 0:00:05]} d6 {[%emt 0:00:02]} 5. Nf3 {[%emt 0:00:05]} O-O {[%emt 0:00:05]} 6. Be2 {[%emt 0:00:10]} e5 {[%emt 0:00:04]} 7. d5 {[%emt 0:00:08]} a5 {[%emt 0:00:04]} 8. O-O {[%emt 0:00:26]} Na6 {[%emt 0:00:04]} 9. Bg5 {[%emt 0:01:18]} h6 {[%emt 0:00:05]} 10. Bd2 {[%emt 0:00:20]} Nh5 {[%emt 0:00:09]} 11. Qc1 {[%emt 0:00:57]} Nf4 {[%emt 0:00:34]} 12. Bxf4 {[%emt 0:01:06]} exf4 {[%emt 0:00:04]} 13. Qxf4 {[%emt 0:00:06]} f5 {[%emt 0:00:55]} 14. exf5 {[%emt 0:05:04]} Bxf5 {[%emt 0:00:47]} 15. Qd2 {[%emt 0:02:06]} Qf6 {[%emt 0:07:06]} 16. Rad1 {[%emt 0:17:46]} Rae8 {[%emt 0:43:27]} 17. Nd4 {[%emt 0:14:11]} Bc8 {[%emt 0:33:49]} 18. Bf3 {[%emt 0:08:09]} b6 {[%emt 0:06:30]} 19. Ne4 {[%emt 0:13:05]} Qf7 {[%emt 0:04:01]} 20. Ng3 {[%emt 0:02:01]} Nc5 {[%emt 0:00:52]} 21. Rfe1 {[%emt 0:03:43]} Kh7 {[%emt 0:01:15]} 22. b3 {[%emt 0:04:47]} Bd7 {[%emt 0:00:36]} 23. Ne4 {[%emt 0:07:38]} Be5 {[%emt 0:00:27]} 24. Qc2 {[%emt 0:04:09]} Qg7 {[%emt 0:00:32]} 25. Nxc5 {[%emt 0:05:20]} bxc5 {[%emt 0:00:09]} 26. Nc6 {[%emt 0:00:29]} Bxc6 {[%emt 0:00:25]} 27. dxc6 {[%emt 0:00:07]} Rxf3 {[%emt 0:00:33]} 28. gxf3 Qf6 29. Re3 {[%emt 0:01:50]} Rf8 {[%emt 0:01:30]} 30. Qe4 {[%emt 0:00:51]} Qg7 {[%emt 0:00:31]} 31. Rd5 {[%emt 0:02:22]} Rf4 {[%emt 0:00:18]} 32. Rxe5 {[%emt 0:01:56]} dxe5 {[%emt 0:00:28]} 33. Qxe5 {[%emt 0:00:04]} Qf7 {[%emt 0:00:35]} 34. Qe7 {[%emt 0:00:20]} Rxf3 {[%emt 0:00:25]} 35. Qxf7+ {[%emt 0:00:11]} Rxf7 {[%emt 0:00:02]} 36. Re5 {[%emt 0:00:06]} a4 {[%emt 0:01:01]} 37. bxa4 {[%emt 0:00:08]} Kg7 {[%emt 0:00:32]} 38. Rxc5 {[%emt 0:00:06]} Kf8 {[%emt 0:00:36]} 39. a5 {[%emt 0:00:04]} Rf3 {[%emt 0:00:07]} 40. Rb5 {[%emt 0:00:15]} Ke7 {[%emt 0:00:12]} 41. Rb3 {[%emt 0:30:17]} Rf5 {[%emt 0:30:21]} 42. Ra3 {[%emt 0:00:07]} Rf8 {[%emt 0:01:05]} 43. Rd3 {[%emt 0:00:26]} Ke6 {[%emt 0:00:44]} 44. Rd7 {[%emt 0:01:13]} Ra8 {[%emt 0:00:06]} 45. Rxc7 {[%emt 0:00:05]} Rxa5 {[%emt 0:00:05]} 46. Rh7 {[%emt 0:00:06]} Rc5 {[%emt 0:00:28]} 47. c7 {[%emt 0:00:04]} h5 {[%emt 0:00:08]} 48. a4 {[%emt 0:00:05]} Kd6 {[%emt 0:00:10]} 49. a5 {[%emt 0:00:06]} Rxc4 {[%emt 0:00:27]} 50. Kg2 {[%emt 0:00:18]} Rxc7 {[%emt 0:00:23]} 51. Rxc7 {[%emt 0:00:04]} Kxc7 {[%emt 0:00:04]} 52. Kf3 {[%emt 0:00:03]} Kb7 {[%emt 0:00:05]} 53. Kf4 {[%emt 0:00:04]} Ka6 {[%emt 0:00:03]} 54. Kg5 {[%emt 0:00:03]} Kxa5 {[%emt 0:00:07]} 55. Kxg6 {[%emt 0:00:04]} h4 {[%emt 0:00:06]} 56. f4 {[%emt 0:00:07]} 1-0

[Event "FIDE WY-U16 Olympiad 2022"]
[Site "Nakhchivan"]
[Date "2022.10.03"]
[Round "2.24"]
[White "Sustov, Savva"]
[Black "Akhilbay, Imangali"]
[Result "0-1"]
[ECO "B35"]
[WhiteElo "1957"]
[BlackElo "2098"]
[Annotator "TA"]
[PlyCount "70"]
[EventDate "2022.10.02"]
[EventType "team-tourn"]
[EventCountry "AZE"]
[TimeControl "40/5400+30:1800+30"]

{[%evp 14,70,22,33,48,23,29,23,30,40,29,28,30,13,13,5,39,14,54,47,51,51,36,28,66,59,62,0,0,0,0,-9,-9,-68,-62,-95,33,-101,-111,-91,-103,-97,-90,-112,-111,-116,-110,-93,-105,-93,0,-60,50,-29972,354,-29965,-5522,-29990,-29991]} 1. e4 {[%emt 0:00:05]} c5 {[%emt 0:00:17]} 2. Nf3 {[%emt 0:00:06]} Nc6 {[%emt 0:00:07]} 3. d4 {[%emt 0:00:05]} cxd4 {[%emt 0:00:04]} 4. Nxd4 {[%emt 0:00:05]} g6 {[%emt 0:00:04]} 5. Nc3 {[%emt 0:00:07]} Bg7 {[%emt 0:00:04]} 6. Be3 {[%emt 0:00:06]} Nf6 {[%emt 0:00:06]} 7. Bc4 {[%emt 0:00:12]} O-O {[%emt 0:00:06]} 8. Bb3 {[%emt 0:00:09]} Re8 {[%emt 0:01:48] B35: Sicilian: Accelerated Dragon with 5 Nc3: main line.} 9. f3 {[%emt 0:00:45]} d5 {[%emt 0:00:58]} 10. exd5 {[%emt 0:00:33][%cal Be4d5,Bd5d6][%mdl 32]} Nb4 {[%emt 0:00:07][%cal Rb4d5] White has an edge.} 11. Nde2 {[%emt 0:09:02]} e6 {[%emt 0:03:49][%cal Rf6d5]} 12. d6 {[%emt 0:03:03]} Nbd5 {[%emt 0:06:12]} 13. Nxd5 {[%emt 0:16:44]} exd5 {[%emt 0:05:15]} 14. Bd4 {[%emt 0:08:28] [#]} Nh5 $146 {[%emt 0:07:02]} ({Predecessor:} 14... Qxd6 15. O-O Bd7 16. Rf2 Bh6 17. Nc3 Bc6 18. Re2 Nh5 19. g3 a5 20. a4 Ng7 {½-½ (37) Kaasen,T (2376)-Skrondal,I (2312) Larvik 2019}) 15. g3 {[%emt 0:19:50] Prevents Nf4.} (15. Bxg7 Nf4 16. Bd4 Rxe2+ 17. Qxe2 Nxe2 18. Kxe2 Qxd6 $15) 15... Bh6 {[%emt 0:11:17]} (15... Qxd6 $5 {[%cal Rd6e7]} 16. Bxg7 Nxg7 $11) 16. Kf2 {[%emt 0:05:51]} (16. Bxd5 Qxd6 17. Be3 Bf8 $15) 16... Qxd6 {[%emt 0:09:57]} 17. Nc3 {[%emt 0:01:18]} (17. Kg1 Bh3 18. Qd3 Re7 $17) 17... Be6 {[%emt 0:04:20]} 18. Re1 {[%emt 0:01:40]} Rad8 {[%emt 0:10:11]} 19. Nb5 {[%emt 0:06:04]} Qd7 {[%emt 0:04:37]} 20. Nxa7 {[%emt 0:04:54]} (20. a4 $1 $14) 20... b6 $11 {[%emt 0:06:12]} ({Don't take} 20... Bh3 21. Qd3 $16 (21. Kg1 Rxe1+ 22. Qxe1 Re8 $11)) 21. Bxb6 {[%emt 0:04:43] Hoping for a4.} Ra8 {[%emt 0:05:37] White must now prevent ...Reb8.} 22. Qd4 {[%emt 0:02:32] Threatens to win with Ba4.} Bg7 {[%emt 0:04:35]} 23. Qc5 {[%emt 0:01:18]} (23. Qa4 $1 $11 Qb7 24. Qc6) 23... Reb8 {[%emt 0:02:39] And now ...Qb7 would win.} 24. Nc6 {[%emt 0:05:01]} Rb7 {[%emt 0:03:39]} (24... Bf8 $17 25. Qb5 Ra6 26. Ne7+ (26. Qxa6 Qxc6 27. Kg2 Nf6 $15) 26... Qxe7 27. Qxa6 Qd6) 25. Nd8 {[%emt 0:05:50]} Rc8 $17 {[%emt 0:07:01]} 26. Qa5 {[%emt 0:00:41] [#]} Rxb6 {[%emt 0:02:27]} 27. Qxb6 {[%emt 0:00:31][%cal Rd8e6]} Rxd8 {[%emt 0:00:05]} 28. c3 {[%emt 0:01:09]} Rc8 {[%emt 0:00:21][%mdl 1024] Black has strong compensation.} 29. Rad1 {[%emt 0:00:47]} Bf8 $36 {[%emt 0:00:13][%mdl 2048] Strongly threatening ...Bc5+. Black is on the roll.} 30. Kg2 {[%emt 0:00:40]} Bc5 {[%emt 0:00:15]} 31. Qa6 {[%emt 0:00:31][%cal Ob3d5]} Bh3+ {[%emt 0:03:55] A strong pair of Bishops.} 32. Kh1 Qf5 {[%emt 0:00:10]} (32... Qc7 $1 $15 33. Qe2 Nf6) 33. Qd3 $2 {[%emt 0:01:10][%mdl 8192] [#]} (33. Bxd5 $14 Nf6 34. g4) 33... Nxg3+ $1 {[%emt 0:00:25][%mdl 576] Clearance} 34. hxg3 {[%emt 0:00:26]} Qh5 {[%emt 0:00:04][%cal Rh3f1]} 35. Re2 {[%emt 0:02:37]} Bg4+ $1 {[%emt 0:00:07][%mdl 64] Discovered Attack.  Weighted Error Value: White=0.44/Black=0.20 (precise)} 0-1

[Event "FIDE WY-U16 Olympiad 2022"]
[Site "Nakhchivan"]
[Date "2022.10.03"]
[Round "2.24"]
[White "Jiang, Kate Yuhua"]
[Black "Imranli, Madina"]
[Result "1-0"]
[ECO "B22"]
[WhiteElo "1670"]
[BlackElo "1034"]
[Annotator "COMBH"]
[PlyCount "125"]
[EventDate "2022.10.02"]
[EventType "team-tourn"]
[EventCountry "AZE"]
[TimeControl "40/5400+30:1800+30"]

1. e4 {[%emt 0:00:04]} c5 {[%emt 0:00:06]} 2. c3 {[%emt 0:00:01]} d5 {[%emt 0:00:05]} 3. exd5 {[%emt 0:00:03]} Qxd5 {[%emt 0:00:09]} 4. d4 {[%emt 0:00:02]} Nc6 {[%emt 0:00:21]} 5. Nf3 {[%emt 0:00:05]} Bg4 {[%emt 0:00:08]} 6. Be2 {[%emt 0:00:03]} cxd4 {[%emt 0:00:22]} 7. cxd4 {[%emt 0:00:06]} e6 {[%emt 0:00:12]} 8. Nc3 {[%emt 0:00:08]} Bb4 {[%emt 0:00:07]} 9. O-O {[%emt 0:00:35]} Qa5 {[%emt 0:00:08]} 10. Bd2 {[%emt 0:28:02]} Nf6 {[%emt 0:03:38]} 11. a3 {[%emt 0:02:17]} Be7 {[%emt 0:01:33]} 12. Be3 {[%emt 0:06:05]} O-O {[%emt 0:04:12]} 13. h3 {[%emt 0:01:26]} Bh5 {[%emt 0:00:40]} 14. Qb3 {[%emt 0:05:02]} Qc7 {[%emt 0:05:43]} 15. Rac1 {[%emt 0:00:06]} a6 {[%emt 0:08:34]} 16. Rfd1 {[%emt 0:00:10]} Rfd8 {[%emt 0:03:00]} 17. Na4 {[%emt 0:02:32]} Nd5 {[%emt 0:07:40]} 18. g4 {[%emt 0:03:56]} Nxe3 {[%emt 0:12:50]} 19. Qxe3 {[%emt 0:00:02]} Bg6 {[%emt 0:01:55]} 20. Ne5 {[%emt 0:00:08]} Rd6 {[%emt 0:07:36]} 21. Nc4 {[%emt 0:04:52]} Rdd8 {[%emt 0:02:44]} 22. Ncb6 {[%emt 0:01:48]} Rab8 {[%emt 0:00:36]} 23. d5 {[%emt 0:02:10]} h6 {[%emt 0:17:14]} 24. dxc6 {[%emt 0:00:24]} Bg5 {[%emt 0:00:19]} 25. Qf3 {[%emt 0:08:15]} Bxc1 {[%emt 0:01:09]} 26. Rxc1 {[%emt 0:00:15]} bxc6 {[%emt 0:01:17]} 27. Rxc6 {[%emt 0:00:25]} Qe5 {[%emt 0:02:44]} 28. Qe3 {[%emt 0:05:56]} Qxe3 {[%emt 0:06:41]} 29. fxe3 {[%emt 0:00:02]} Rd2 {[%emt 0:00:55]} 30. Kf1 {[%emt 0:01:03]} Rc2 {[%emt 0:03:49]} 31. Rxc2 {[%emt 0:00:14]} Bxc2 {[%emt 0:00:15]} 32. Ke1 {[%emt 0:02:32]} a5 {[%emt 0:01:29]} 33. Kd2 {[%emt 0:00:11]} Be4 {[%emt 0:00:39]} 34. Nc4 {[%emt 0:00:48]} Rd8+ {[%emt 0:00:26]} 35. Kc3 {[%emt 0:00:30]} Rc8 {[%emt 0:00:20]} 36. Kd4 {[%emt 0:01:02]} Bg2 {[%emt 0:01:08]} 37. h4 {[%emt 0:00:13]} Rd8+ {[%emt 0:00:54]} 38. Kc5 {[%emt 0:02:04]} Rc8+ {[%emt 0:01:10]} 39. Kd4 {[%emt 0:01:40]} Rd8+ {[%emt 0:00:11]} 40. Kc3 {[%emt 0:00:01]} Rc8 {[%emt 0:00:22]} 41. Nab6 {[%emt 0:30:42]} Rc6 {[%emt 0:30:22]} 42. Kb3 {[%emt 0:00:16]} Bd5 {[%emt 0:01:00]} 43. Ka4 {[%emt 0:03:18]} Rc5 {[%emt 0:01:28]} 44. b4 {[%emt 0:02:27]} Bc6+ {[%emt 0:01:40]} 45. Kb3 {[%emt 0:00:14]} axb4 {[%emt 0:00:49]} 46. axb4 {[%emt 0:00:05]} Rb5 {[%emt 0:00:28]} 47. Kc3 {[%emt 0:00:53]} Bd5 {[%emt 0:00:41]} 48. Nxd5 {[%emt 0:01:01]} Rxd5 {[%emt 0:00:28]} 49. Bf3 {[%emt 0:00:41]} Rd7 {[%emt 0:01:12]} 50. b5 {[%emt 0:00:07]} Rd8 {[%emt 0:00:27]} 51. b6 {[%emt 0:00:32]} Rb8 {[%emt 0:00:16]} 52. b7 {[%emt 0:01:01]} Kf8 {[%emt 0:00:10]} 53. Ne5 {[%emt 0:01:09]} Ke8 {[%emt 0:00:16]} 54. Bc6+ {[%emt 0:00:28]} Kd8 {[%emt 0:00:24]} 55. Nxf7+ {[%emt 0:02:44]} Kc7 {[%emt 0:00:15]} 56. Ne5 {[%emt 0:00:54]} Kd6 {[%emt 0:01:18]} 57. Nd7 {[%emt 0:01:17]} Kxc6 {[%emt 0:00:11]} 58. Nxb8+ {[%emt 0:00:03]} Kxb7 {[%emt 0:00:06]} 59. Nd7 {[%emt 0:00:24]} Kc6 {[%emt 0:00:03]} 60. Nf8 {[%emt 0:00:08]} Kd5 {[%emt 0:00:19]} 61. Kd3 {[%emt 0:00:21]} e5 {[%emt 0:00:03]} 62. e4+ {[%emt 0:01:16]} Kd6 {[%emt 0:00:08]} 63. Kc4 {[%emt 0:00:07]} 1-0

[Event "FIDE WY-U16 Olympiad 2022"]
[Site "Nakhchivan"]
[Date "2022.10.03"]
[Round "2.25"]
[White "Southcott-Moyers, Indy"]
[Black "Soojay, Jorah"]
[Result "1/2-1/2"]
[ECO "E11"]
[WhiteElo "1952"]
[BlackElo "1573"]
[Annotator "TA"]
[PlyCount "79"]
[EventDate "2022.10.02"]
[EventType "team-tourn"]
[EventCountry "AZE"]
[SourceTitle "playchess.com"]
[Source "ChessBase"]
[SourceQuality "1"]
[WhiteTeam "England"]
[BlackTeam "South Africa"]
[WhiteTeamCountry "ENG"]
[BlackTeamCountry "RSA"]
[TimeControl "40/5400+30:1800+30"]

{[%evp 12,79,14,14,12,13,15,17,41,11,21,4,39,34,58,44,79,77,92,41,33,13,27,22,28,14,6,0,25,5,13,0,0,0,0,0,9,0,0,0,0,0,0,0,0,0,0,0,0,0,0,0,0,0,0,0,0,0,0,0,0,0,0,0,0,0,0,0,0,0]} 1. d4 {[%emt 0:00:05]} Nf6 {[%emt 0:00:06]} 2. c4 {[%emt 0:00:05]} e6 {[%emt 0:00:03]} 3. Nf3 {[%emt 0:00:08]} Bb4+ {[%emt 0:00:05]} 4. Bd2 {[%emt 0:00:21]} Bxd2+ {[%emt 0:00:05]} 5. Qxd2 {[%emt 0:00:08]} b6 {[%emt 0:00:16]} 6. e3 {[%emt 0:00:43]} Bb7 {[%emt 0:00:05]} 7. Nc3 {[%emt 0:00:39]} O-O {[%emt 0:00:36] E11: Bogo-Indian.} 8. Be2 {[%emt 0:00:08]} Qe7 {[%emt 0:00:33]} 9. O-O {[%emt 0:05:57]} c5 {[%emt 0:03:09]} 10. Rfd1 {[%emt 0:06:07]} d5 {[%emt 0:00:34] [#]} 11. cxd5 $146 {[%emt 0:01:59]} ({Predecessor:} 11. Rac1 Nbd7 12. Ne5 Rfd8 13. Nxd7 Rxd7 14. cxd5 cxd4 15. Qxd4 Nxd5 16. Nxd5 Rxd5 17. Qf4 Rxd1+ 18. Rxd1 {0-1 (53) Kristovic,M (2336)-Jakovljevic,V (2385) Zagreb 2006}) 11... Nxd5 {[%emt 0:00:09]} (11... exd5 {seems wilder.} 12. Qc2 Nc6 13. h3 Rac8) 12. Nxd5 {[%emt 0:05:53]} Bxd5 {[%emt 0:00:10]} 13. dxc5 {[%emt 0:08:32]} Qxc5 {[%emt 0:00:06]} 14. Rac1 {[%emt 0:01:58]} Qe7 {[%emt 0:00:13]} 15. b3 {[%emt 0:04:41]} (15. Qd4 $16) 15... Nc6 $14 {[%emt 0:06:46][%cal Bb8c6,Bc6a5,Ba5b7,Bb7d6][%mdl 32]} 16. Qb2 {[%emt 0:09:46][%cal Od1d5] [#] And now Rxd5! would win.} Na5 {[%emt 0:14:07]} 17. Nd4 {[%emt 0:12:08]} Rac8 {[%emt 0:08:21]} 18. Rxc8 {[%emt 0:07:53]} Rxc8 {[%emt 0:00:08]} 19. Rc1 {[%emt 0:00:10]} Qd8 {[%emt 0:07:02]} 20. Rc3 {[%emt 0:04:47]} Nb7 {[%emt 0:05:12] The position is equal.} 21. Qc1 {[%emt 0:01:49]} Rxc3 {[%emt 0:04:11]} 22. Qxc3 {[%emt 0:00:02]} Nd6 {[%emt 0:00:10]} 23. f3 {[%emt 0:07:43]} Bb7 {[%emt 0:02:06]} 24. e4 {[%emt 0:03:43]} e5 {[%emt 0:10:10]} 25. Nb5 {[%emt 0:00:52]} Nxb5 {[%emt 0:01:53]} 26. Bxb5 $11 {[%emt 0:00:08][%mdl 4096] Endgame KQB-KQB} Qd6 {[%emt 0:00:57]} 27. Kf2 {[%emt 0:03:12]} Kf8 {[%emt 0:00:39]} 28. b4 {[%emt 0:03:52]} a6 {[%emt 0:09:31]} 29. Ba4 {[%emt 0:01:12]} b5 {[%emt 0:01:24]} 30. Bb3 {[%emt 0:01:15]} Bc6 {[%emt 0:04:40]} 31. a3 {[%emt 0:01:11]} Ke7 {[%emt 0:00:33]} 32. g3 {[%emt 0:01:40]} Bd7 {[%emt 0:00:57]} 33. h4 {[%emt 0:02:07]} Be6 {[%emt 0:00:46]} 34. Bxe6 {[%emt 0:00:32]} Kxe6 {[%emt 0:01:31] KQ-KQ} 35. Ke3 {[%emt 0:01:57]} Kd7 {[%emt 0:01:15]} 36. Qd3 {[%emt 0:00:29]} Qxd3+ {[%emt 0:00:13]} 37. Kxd3 {[%emt 0:00:05]} f6 {[%emt 0:00:12]} 38. Ke3 {[%emt 0:00:16]} Ke6 {[%emt 0:00:09]} 39. Kf2 {[%emt 0:00:47]} g5 {[%emt 0:00:28]} 40. h5 {[%emt 0:00:24] Weighted Error Value: White=0.06 (flawless) /Black=0.04 (flawless)} 1/2-1/2

[Event "FIDE WY-U16 Olympiad 2022"]
[Site "Nakhchivan"]
[Date "2022.10.03"]
[Round "2.26"]
[White "Manon, Reja Neer"]
[Black "Gonzalez Soler, Leduard Manuel"]
[Result "1-0"]
[ECO "B18"]
[WhiteElo "2107"]
[BlackElo "2251"]
[Annotator "NA RC"]
[PlyCount "37"]
[EventDate "2022.10.02"]
[EventType "team-tourn"]
[EventCountry "AZE"]
[SourceTitle "playchess.com"]
[Source "ChessBase"]
[SourceQuality "1"]
[WhiteTeam "Bangladesh"]
[BlackTeam "Cuba"]
[WhiteTeamCountry "BAN"]
[BlackTeamCountry "CUB"]
[TimeControl "40/5400+30:1800+30"]

1. e4 {[%emt 0:00:04]} c6 {[%emt 0:00:09]} 2. d4 {[%emt 0:00:05]} d5 {[%emt 0:00:03]} 3. Nc3 {[%emt 0:00:05]} dxe4 {[%emt 0:00:04]} 4. Nxe4 {[%emt 0:00:06]} Bf5 {[%emt 0:00:05]} 5. Ng3 {[%emt 0:00:05]} Bg6 {[%emt 0:00:04]} 6. Bc4 {[%emt 0:00:05]} e6 {[%emt 0:00:07]} 7. N1e2 {[%emt 0:00:04]} Bd6 {[%emt 0:00:11]} 8. h4 {[%emt 0:00:32]} h6 {[%emt 0:00:24]} 9. Nf4 {[%emt 0:00:10]} Bh7 {[%emt 0:01:03]} 10. Ngh5 {[%emt 0:04:01]} Kf8 {[%emt 0:01:12]} 11. Qg4 {[%emt 0:03:29]} g6 {[%emt 0:07:53]} 12. Ng3 {[%emt 0:28:03]} Nf6 {[%emt 0:19:05]} 13. Qf3 {[%emt 0:04:24]} Kg7 {[%emt 0:02:40]} 14. Bd2 {[%emt 0:02:55]} Nbd7 15. O-O-O {[%emt 0:01:14]} e5 {[%emt 0:31:19]} 16. Nfh5+ {[%emt 0:12:07]} Kg8 {[%emt 0:28:24]} 17. Nxf6+ {[%emt 0:07:14]} Qxf6 {[%emt 0:00:21]} 18. Qg4 {[%emt 0:00:01]} Qe7 {[%emt 0:04:43]} 19. Nf5 {[%emt 0:01:57]} 1-0

[Event "FIDE WY-U16 Olympiad 2022"]
[Site "Nakhchivan"]
[Date "2022.10.03"]
[Round "2.26"]
[White "Chang, Sebastian"]
[Black "Pal, Rohan"]
[Result "1-0"]
[ECO "B31"]
[WhiteElo "1430"]
[BlackElo "1913"]
[Annotator "TA"]
[PlyCount "87"]
[EventDate "2022.10.02"]
[EventType "team-tourn"]
[EventCountry "AZE"]
[TimeControl "40/5400+30:1800+30"]

{[%evp 9,87,6,7,9,23,15,10,-26,-1,-23,-25,-45,-47,-46,-33,-45,-8,-45,0,0,0,0,0,0,0,-16,0,0,0,0,33,0,2,9,83,47,52,47,51,58,53,56,52,52,54,56,49,41,1359,1367,1321,1081,1540,1464,5233,5012,5285,1812,29971,29972,29974,29975,29975,29976,29976,29974,29967,1811,29982,29983,29983,29984,29984,29985,29984,29983,29986,29987,29988,29989]} 1. e4 {[%emt 0:00:04]} c5 {[%emt 0:00:07]} 2. Nf3 {[%emt 0:00:08]} Nc6 {[%emt 0:00:07]} 3. Bb5 {[%emt 0:00:26]} g6 {[%emt 0:00:21]} 4. Nc3 {[%emt 0:01:01]} Bg7 {[%emt 0:00:27]} 5. d3 {[%emt 0:02:12]} d6 {[%emt 0:07:02]} 6. h3 {[%emt 0:00:30] B30: Sicilian: 2...Nc6 3 Bb5, lines without ...g6.} e5 {[%emt 0:03:29]} 7. O-O {[%emt 0:04:37]} Nge7 {[%emt 0:01:39][%cal Bg8e7,Be7c6,Bc6e5][%mdl 32]} 8. Nh2 {[%emt 0:05:06] [#] The position is equal.} Be6 $146 {[%emt 0:09:45]} ({Predecessor:} 8... O-O 9. a4 f5 10. Bc4+ Kh8 11. Nf3 h6 12. Nd5 Be6 13. c3 Bf7 14. Bd2 Nxd5 15. Bxd5 Bxd5 16. exd5 {0-1 (43) Baglan,E (2333)-Csonka,B (2474) Chess.com INT 2022}) 9. Be3 {[%emt 0:04:29]} O-O {[%emt 0:00:47]} 10. Bxc6 {[%emt 0:04:28]} Nxc6 {[%emt 0:00:31]} 11. Qd2 {[%emt 0:02:59]} f5 {[%emt 0:04:43]} 12. exf5 {[%emt 0:02:03]} Bxf5 {[%emt 0:00:44]} (12... gxf5 $5 {[%cal Rf5f4]} 13. f4 Qe7 14. fxe5 dxe5 $15) 13. f4 {[%emt 0:00:43]} b6 {[%emt 0:06:08] aiming for ...d5.} 14. fxe5 $1 {[%emt 0:05:07]} Nxe5 {[%emt 0:00:36]} 15. Bh6 {[%emt 0:02:54]} Qd7 {[%emt 0:17:00]} 16. Bxg7 {[%emt 0:05:44]} Qxg7 {[%emt 0:01:27]} 17. Nf3 {[%emt 0:06:57]} Rae8 {[%emt 0:05:50]} 18. Rae1 {[%emt 0:03:46]} Nxf3+ {[%emt 0:06:21]} 19. Rxf3 {[%emt 0:00:42]} Bc8 {[%emt 0:04:52]} 20. Rxe8 {[%emt 0:14:19]} Rxe8 {[%emt 0:00:11]} 21. Qf4 {[%emt 0:00:57]} Rf8 {[%emt 0:22:35]} (21... Re6 $11 {keeps the balance.}) 22. Qxf8+ {[%emt 0:00:32]} ({Much worse is} 22. Qxd6 Rxf3 23. gxf3 Bxh3 $11) 22... Qxf8 {[%emt 0:00:05]} 23. Rxf8+ {[%emt 0:00:03]} Kxf8 $16 {[%emt 0:00:11][%mdl 4096] Endgame KB-KN} 24. Nb5 $1 {[%emt 0:00:25][%csl LRa7,LRd6]} Ke7 {[%emt 0:00:51]} 25. Nxa7 {[%emt 0:07:37]} Bd7 {[%emt 0:00:06]} 26. Kf2 {[%emt 0:07:15]} d5 {[%emt 0:02:19]} 27. c4 {[%emt 0:00:26][%cal Bc2c4,Bc4b5][%mdl 32] Prevents b5.} Ke6 {[%emt 0:02:32]} 28. Nb5 {[%emt 0:03:18] Black must now prevent Nc7+.} Bxb5 {[%emt 0:00:41][%mdl 8192] [#] This move loses the game for Black.} (28... Ke5 $14) 29. cxb5 $14 {[%emt 0:00:20] KP-KP} Ke5 {[%emt 0:00:54]} 30. Ke3 {[%emt 0:01:49]} g5 {[%emt 0:01:15]} 31. g3 {[%emt 0:04:45]} d4+ {[%emt 0:00:18]} 32. Kf3 {[%emt 0:00:21]} h5 {[%emt 0:00:32]} 33. h4 {[%emt 0:04:46]} (33. b3 $142 Kf5 34. g4+ hxg4+ 35. Kg3 gxh3 36. a4) 33... g4+ {[%emt 0:00:08]} 34. Ke2 {[%emt 0:00:25]} Kd5 {[%emt 0:00:21]} 35. Kd2 {[%emt 0:00:06]} Kd6 {[%emt 0:01:03]} 36. Kc2 {[%emt 0:00:07]} Ke5 {[%emt 0:00:44]} 37. Kb3 {[%emt 0:01:16]} Kd5 {[%emt 0:00:45]} 38. a3 {[%emt 0:00:42][%cal Ba2a3,Ba3a4][%mdl 32] [#] Intending a4 and mate.} Kd6 {[%emt 0:00:25]} 39. Kc4 {[%emt 0:00:05] White mates.} Ke6 {[%emt 0:00:56]} 40. a4 {[%emt 0:00:10]} Kd6 {[%emt 0:00:07]} 41. b3 {[%emt 0:30:08]} Kc7 {[%emt 0:30:15]} 42. Kd5 {[%emt 0:00:33]} Kb7 {[%emt 0:00:16]} 43. Kd6 {[%emt 0:00:38]} Kb8 {[%emt 0:00:21]} 44. Kc6 {[%emt 0:00:03] Weighted Error Value: White=0.09 (flawless) /Black=0.46} 1-0